bitfinex/quotes_BTCUSD_20220103
["timestamp","ask_amount","ask_price","bid_price","bid_amount"]
[1641228233941,0.00123978,46462.0,46458.0,0.19782585]
[1641228234140,0.85037062,46463.0,46458.0,0.24782585]
[1641228234342,0.85037062,46466.0,46454.0,0.08430318]
[1641228234541,0.85037062,46466.0,46455.0,0.05]
[1641228234742,0.84992616,46466.0,46456.0,0.05382]
[1641228234943,0.84992616,46465.0,46456.0,0.05382]
[1641228235147,0.99992616,46465.0,46456.0,0.05382]
[1641228235345,0.99992616,46465.0,46461.0,0.20840518]
[1641228235544,0.349852,46464.0,46455.0,0.39995993]
[1641228235743,0.1,46465.0,46455.0,0.39995993]
[1641228235946,0.00127272,46469.0,46458.0,0.49338884]
[1641228236148,0.05,46467.0,46461.0,0.25620666]
[1641228236345,0.05,46467.0,46464.0,0.07121381]
[1641228236542,0.00127272,46469.0,46464.0,0.07121381]
[1641228236744,0.15,46470.0,46464.0,0.07121381]
[1641228237183,0.05,46470.0,46464.0,0.07121381]
[1641228237383,0.23972022,46473.0,46464.0,0.07121381]
[1641228237685,0.103813,46473.0,46464.0,0.12502581]
[1641228237984,0.58435686,46472.0,46464.0,0.13355881]
[1641228238185,0.73435686,46472.0,46464.0,0.062345]
[1641228238584,0.349852,46471.0,46464.0,0.062345]
[1641228238790,0.403667,46471.0,46464.0,0.062345]
[1641228238985,0.503667,46471.0,46464.0,0.062345]
[1641228239185,0.153815,46471.0,46466.0,0.07369619]
[1641228239787,1.48829436,46485.0,46467.0,0.058224]
[1641228239987,0.24101328,46481.0,46473.0,0.26719851]
[1641228240290,0.00126786,46483.0,46473.0,0.26719851]
[1641228240487,0.349852,46482.0,46471.0,0.25500932]
[1641228240757,0.63925306,46480.0,46474.0,0.09878325]
[1641228240950,0.63925306,46480.0,46471.0,0.25500932]
[1641228241148,0.63925306,46480.0,46471.0,0.053802]
[1641228241359,0.60732277,46474.0,46471.0,0.053802]
[1641228242553,0.65732277,46474.0,46471.0,0.107603]
[1641228243853,0.60732277,46474.0,46473.0,0.00018563]
[1641228244688,0.60732277,46475.0,46473.0,0.00018563]
[1641228245787,0.60732277,46475.0,46474.0,0.07471479]
[1641228246088,0.60732277,46476.0,46473.0,0.00018563]
[1641228246286,0.60732277,46476.0,46474.0,0.1076]
[1641228246489,0.60732277,46476.0,46474.0,0.053799]
[1641228247491,0.2769708,46481.0,46474.0,0.053799]
[1641228247690,0.2269708,46481.0,46474.0,0.053799]
[1641228247988,0.2269708,46481.0,46473.0,0.00018563]
[1641228247989,0.05,46481.0,46475.0,0.0538]
[1641228248246,0.25886846,46483.0,46475.0,0.0538]
[1641228248438,0.25386846,46483.0,46475.0,0.0538]
[1641228248636,0.25386846,46483.0,46473.0,0.10398563]
[1641228248837,0.25386846,46483.0,46477.0,0.24491976]
[1641228249038,0.15386846,46483.0,46477.0,0.24491976]
[1641228249435,0.15386846,46483.0,46475.0,0.09781074]
[1641228249636,0.15386846,46483.0,46473.0,0.05398563]
[1641228249637,0.15386846,46483.0,46477.0,0.053799]
[1641228252083,0.00125986,46487.0,46477.0,0.053799]
[1641228252687,0.1076006,46483.0,46477.0,0.053799]
[1641228253183,0.1038,46483.0,46477.0,0.053799]
[1641228253382,0.0538,46483.0,46477.0,0.053799]
[1641228254586,0.0538,46483.0,46474.0,0.053802]
[1641228254786,0.053803,46480.0,46473.0,0.00018563]
[1641228255088,0.35106293,46476.0,46473.0,0.00018563]
[1641228255287,0.349852,46474.0,46473.0,0.00018563]
[1641228255485,0.443052,46474.0,46473.0,0.00018563]
[1641228255757,0.543052,46474.0,46473.0,0.00018563]
[1641228257148,0.89919713,46474.0,46473.0,0.00018563]
[1641228258150,1.31919713,46474.0,46473.0,0.00018563]
[1641228259148,0.89919713,46474.0,46473.0,0.00018563]
[1641228261402,1.09144196,46474.0,46473.0,0.00018563]
[1641228264945,1.44866692,46474.0,46473.0,0.00018563]
[1641228265147,1.64866692,46474.0,46473.0,0.00018563]
[1641228265350,1.29144196,46474.0,46473.0,0.00018563]
[1641228266750,1.29144196,46474.0,46473.0,0.00037041]
[1641228268194,2.80354159,46474.0,46473.0,0.00037041]
[1641228268395,2.43544196,46474.0,46473.0,0.00037041]
[1641228270199,2.44091203,46474.0,46473.0,0.00037041]
[1641228271554,0.2,46472.0,46469.0,0.00780248]
[1641228271854,1.74889401,46470.0,46469.0,0.00780248]
[1641228272054,1.99209401,46470.0,46469.0,0.00780248]
[1641228272253,1.99209401,46470.0,46464.0,0.008533]
[1641228272254,0.2,46466.0,46464.0,0.008533]
[1641228272456,0.9572325,46465.0,46464.0,0.008533]
[1641228272755,1.36522873,46465.0,46464.0,0.008533]
[1641228272954,2.45351869,46465.0,46464.0,0.008533]
[1641228273155,0.2,46462.0,46448.0,0.71664461]
[1641228273352,0.09973862,46463.0,46458.0,0.00780264]
[1641228273353,0.2,46460.0,46458.0,0.00780264]
[1641228273552,2.25661942,46459.0,46458.0,0.00780264]
[1641228273752,2.25661942,46459.0,46458.0,0.00767838]
[1641228273753,2.84651942,46459.0,46458.0,0.00767838]
[1641228273953,2.9531233,46459.0,46458.0,0.00861138]
[1641228274353,3.1146473,46459.0,46458.0,0.008533]
[1641228274598,3.66303726,46459.0,46458.0,0.008533]
[1641228274998,3.91686506,46459.0,46458.0,0.008533]
[1641228275198,0.053845,46451.0,46447.0,0.008533]
[1641228275402,3.66303726,46459.0,46447.0,0.008533]
[1641228275403,0.0432,46450.0,46447.0,0.008533]
[1641228275599,0.0970417,46449.0,46447.0,0.008533]
[1641228275898,0.0432,46448.0,46447.0,0.008533]
[1641228276100,0.0432,46448.0,46447.0,0.017066]
[1641228276299,0.0932,46448.0,46447.0,0.017066]
[1641228276498,0.443052,46448.0,46447.0,0.017066]
[1641228276899,0.543052,46448.0,46447.0,0.017066]
[1641228277099,0.8546638,46448.0,46447.0,0.017066]
[1641228277300,0.84720217,46448.0,46447.0,0.017066]
[1641228277598,0.84720217,46448.0,46447.0,0.01723901]
[1641228277800,0.94784853,46448.0,46447.0,0.01741202]
[1641228278264,1.55536755,46448.0,46447.0,0.01741202]
[1641228280352,0.94784853,46448.0,46447.0,0.01741202]
[1641228281055,1.14784853,46448.0,46447.0,0.01741202]
[1641228281255,1.47784853,46448.0,46447.0,0.01741202]
[1641228281454,1.14784853,46448.0,46447.0,0.01741202]
[1641228281656,1.21630179,46448.0,46447.0,0.01741202]
[1641228281855,1.13013853,46448.0,46447.0,0.01741202]
[1641228282299,1.21630272,46448.0,46447.0,0.01741202]
[1641228283100,1.53630272,46448.0,46447.0,0.01741202]
[1641228283296,1.21630272,46448.0,46447.0,0.01741202]
[1641228283497,1.01630272,46448.0,46447.0,0.01741202]
[1641228283697,0.69844456,46448.0,46447.0,0.01741202]
[1641228283896,0.62175456,46448.0,46447.0,0.01741202]
[1641228284097,1.04175456,46448.0,46447.0,0.01741202]
[1641228284900,0.62175456,46448.0,46447.0,0.01741202]
[1641228287236,0.93255723,46448.0,46447.0,0.01741202]
[1641228289236,0.47921619,46448.0,46447.0,0.01741202]
[1641228290283,0.79057904,46448.0,46447.0,0.01741202]
[1641228290484,0.70441485,46448.0,46447.0,0.01741202]
[1641228291086,0.85441485,46448.0,46447.0,0.01741202]
[1641228292589,1.05441485,46448.0,46447.0,0.01741202]
[1641228292788,0.743052,46448.0,46447.0,0.01741202]
[1641228294840,0.543052,46448.0,46447.0,0.01741202]
[1641228295840,1.33883305,46448.0,46447.0,0.01741202]
[1641228296043,1.15060127,46448.0,46447.0,0.01741202]
[1641228296441,0.543052,46448.0,46447.0,0.01741202]
[1641228297691,2.3798254,46435.0,46427.0,0.67436718]
[1641228297894,2.3798254,46435.0,46434.0,0.42128997]
[1641228298092,2.3798254,46435.0,46434.0,0.47128997]
[1641228298698,2.3798254,46435.0,46434.0,0.40128997]
[1641228298895,2.3798254,46435.0,46434.0,0.40982297]
[1641228299496,2.3798254,46435.0,46434.0,0.74165679]
[1641228300297,2.3798254,46435.0,46434.0,0.79165679]
[1641228301253,2.3798254,46435.0,46434.0,0.45997506]
[1641228301448,2.3798254,46435.0,46434.0,0.55997506]
[1641228301848,2.3798254,46435.0,46434.0,0.78731058]
[1641228302050,2.3798254,46435.0,46434.0,0.45997506]
[1641228302648,2.3798254,46435.0,46434.0,0.79117703]
[1641228303951,2.3798254,46435.0,46434.0,1.53117703]
[1641228304349,2.3798254,46435.0,46434.0,0.79117703]
[1641228304987,2.3798254,46435.0,46434.0,0.84997506]
[1641228305389,2.3798254,46435.0,46434.0,0.45997506]
[1641228305989,2.3798254,46435.0,46434.0,0.85997506]
[1641228306590,2.3798254,46435.0,46434.0,0.45997506]
[1641228306987,2.3798254,46435.0,46434.0,1.03997506]
[1641228307391,2.3798254,46435.0,46434.0,0.45997506]
[1641228309450,2.3798254,46435.0,46434.0,0.46094753]
[1641228309651,2.3798254,46435.0,46434.0,0.46192]
[1641228310853,2.3798254,46435.0,46434.0,1.15192]
[1641228311755,2.3798254,46435.0,46434.0,0.46192]
[1641228312787,2.3798254,46435.0,46434.0,1.38192]
[1641228312986,2.3798254,46435.0,46434.0,1.70997262]
[1641228313188,2.3798254,46435.0,46434.0,1.440231]
[1641228314088,2.3795823,46435.0,46434.0,0.520231]
[1641228314788,2.3795823,46435.0,46434.0,0.46192]
[1641228315490,2.4295823,46435.0,46434.0,0.41192]
[1641228315784,2.7794343,46435.0,46434.0,0.41192]
[1641228318876,2.7794343,46435.0,46434.0,0.41207251]
[1641228319082,2.7793343,46435.0,46434.0,0.41207251]
[1641228319502,2.88449331,46435.0,46434.0,0.41207251]
[1641228319699,2.92769331,46435.0,46434.0,0.41207251]
[1641228320401,2.92769331,46435.0,46434.0,0.42060551]
[1641228320800,0.9225343,46435.0,46434.0,0.42060551]
[1641228321902,1.23253777,46435.0,46434.0,0.01931554]
[1641228322503,0.9225343,46435.0,46434.0,0.01931554]
[1641228323757,0.9125343,46435.0,46434.0,0.01931554]
[1641228326054,1.22548294,46435.0,46434.0,0.01931554]
[1641228326257,1.23274589,46435.0,46434.0,0.01931554]
[1641228326856,1.33334389,46435.0,46434.0,0.01931554]
[1641228327293,1.0131323,46435.0,46434.0,0.01931554]
[1641228327488,1.01879941,46435.0,46434.0,0.01931554]
[1641228327888,1.32735346,46435.0,46434.0,0.01931554]
[1641228328088,1.33297178,46435.0,46434.0,0.01931554]
[1641228328690,1.32735346,46435.0,46434.0,0.01931554]
[1641228328891,1.33485955,46435.0,46434.0,0.01931554]
[1641228329488,1.0131323,46435.0,46434.0,0.01931554]
[1641228330089,1.32346497,46435.0,46434.0,0.01931554]
[1641228330287,1.32513891,46435.0,46434.0,0.01931554]
[1641228330756,1.33259988,46435.0,46434.0,0.01931554]
[1641228331446,1.33334988,46435.0,46434.0,0.01931554]
[1641228331655,1.32588891,46435.0,46434.0,0.01931554]
[1641228331848,1.02108312,46435.0,46434.0,0.01931554]
[1641228332048,1.0138823,46435.0,46434.0,0.01931554]
[1641228332553,0.8739823,46435.0,46434.0,0.01931554]
[1641228332747,0.8307823,46435.0,46434.0,0.01931554]
[1641228333148,0.4809303,46435.0,46434.0,0.3013714]
[1641228333548,0.4809303,46435.0,46434.0,0.3901414]
[1641228335008,0.5309303,46435.0,46434.0,0.3901414]
[1641228335705,0.5309303,46435.0,46434.0,1.10160474]
[1641228335902,0.4809303,46435.0,46434.0,1.4487528]
[1641228336103,0.4809303,46435.0,46434.0,1.5502638]
[1641228336303,0.4809303,46435.0,46434.0,1.20311574]
[1641228336502,0.00780387,46439.0,46435.0,1.61]
[1641228336705,0.00780387,46439.0,46438.0,0.57577331]
[1641228336903,0.00780387,46439.0,46438.0,0.77025237]
[1641228337103,0.00780387,46439.0,46438.0,1.036857]
[1641228337303,0.00780387,46439.0,46438.0,1.090684]
[1641228337504,0.60756516,46449.0,46439.0,1.07]
[1641228337707,0.60756516,46449.0,46444.0,0.00127943]
[1641228337908,0.60756516,46449.0,46445.0,0.058281]
[1641228338107,0.60756516,46454.0,46444.0,0.00127943]
[1641228338345,0.60756516,46454.0,46446.0,0.2906818]
[1641228338548,0.60756516,46454.0,46451.0,0.27693746]
[1641228338745,0.65756516,46454.0,46451.0,0.27693746]
[1641228339147,0.60756516,46455.0,46451.0,0.27693746]
[1641228339345,0.85993536,46455.0,46451.0,0.27693746]
[1641228339749,0.349852,46454.0,46451.0,0.27693746]
[1641228340149,0.65756516,46455.0,46452.0,0.00013692]
[1641228340553,0.60756516,46454.0,46452.0,0.00013692]
[1641228340750,0.65756516,46454.0,46452.0,0.00013692]
[1641228341997,0.05,46454.0,46452.0,0.00013692]
[1641228342398,0.349852,46453.0,46452.0,0.00013692]
[1641228342699,0.399852,46453.0,46452.0,0.00013692]
[1641228344297,0.39811335,46453.0,46452.0,0.00013692]
[1641228344498,0.04826135,46453.0,46452.0,0.00013692]
[1641228344900,0.70756516,46455.0,46452.0,0.00013692]
[1641228345500,0.70756516,46455.0,46453.0,0.07448453]
[1641228345761,0.349852,46454.0,46453.0,0.07448453]
[1641228346153,0.449852,46454.0,46453.0,0.07448453]
[1641228346351,0.499852,46454.0,46453.0,0.07448453]
[1641228346752,0.399852,46454.0,46453.0,0.07448453]
[1641228346952,0.05,46454.0,46453.0,0.07448453]
[1641228347352,0.75756516,46455.0,46453.0,0.07448453]
[1641228347753,0.65756516,46455.0,46454.0,0.00194494]
[1641228347954,0.15382288,46460.0,46454.0,0.60039985]
[1641228347955,0.60756516,46456.0,46454.0,0.60039985]
[1641228348559,0.60756516,46456.0,46454.0,0.26789388]
[1641228348957,0.60756516,46456.0,46454.0,0.00194494]
[1641228349159,0.60756516,46459.0,46454.0,0.00194494]
[1641228349358,0.05,46456.0,46454.0,0.00194494]
[1641228349599,0.15,46458.0,46454.0,0.00194494]
[1641228350002,0.05,46458.0,46454.0,0.00194494]
[1641228350408,0.60756516,46459.0,46454.0,0.0006586]
[1641228350410,0.5537453,46459.0,46454.0,0.0006586]
[1641228350603,0.6037453,46459.0,46458.0,0.22506195]
[1641228350799,0.9535963,46459.0,46458.0,0.22506195]
[1641228351403,0.6037453,46459.0,46458.0,0.22506195]
[1641228351601,0.5537453,46459.0,46458.0,0.22506195]
[1641228352002,0.161458,46460.0,46458.0,0.5604642]
[1641228352201,0.161458,46460.0,46459.0,0.35896865]
[1641228353001,0.05382,46461.0,46459.0,0.62008966]
[1641228353264,0.05382,46461.0,46460.0,0.39833818]
[1641228355855,0.05382,46461.0,46460.0,0.063245]
[1641228356055,0.05382,46461.0,46460.0,0.15528076]
[1641228356853,0.05382,46461.0,46460.0,0.09203576]
[1641228358291,0.05382,46461.0,46460.0,0.09269436]
[1641228359095,0.05382,46461.0,46460.0,0.42081985]
[1641228359290,0.05382,46461.0,46460.0,0.09269436]
[1641228359491,0.05382,46461.0,46460.0,0.0006586]
[1641228360090,0.05382,46461.0,46460.0,0.0639006]
[1641228360778,0.05382,46461.0,46460.0,0.39569869]
[1641228361367,0.05382,46461.0,46460.0,0.36915043]
[1641228361568,0.05382,46461.0,46460.0,0.39319191]
[1641228361775,0.05382,46461.0,46460.0,0.0640312]
[1641228362469,0.10382,46461.0,46460.0,0.0640312]
[1641228362671,0.10382,46461.0,46459.0,9.8e-06]
[1641228362672,0.05382,46461.0,46459.0,9.8e-06]
[1641228362870,0.393051,46460.0,46459.0,9.8e-06]
[1641228363069,0.493051,46460.0,46459.0,9.8e-06]
[1641228363469,0.493051,46460.0,46456.0,0.70967805]
[1641228363670,0.053828,46459.0,46451.0,0.70967805]
[1641228363873,0.21431385,46455.0,46451.0,0.70967805]
[1641228364070,0.1432,46459.0,46452.0,0.05382741]
[1641228364275,0.75053758,46459.0,46452.0,0.05382741]
[1641228365092,0.85819458,46459.0,46452.0,0.05382741]
[1641228365292,0.107658,46456.0,46452.0,0.05382741]
[1641228365894,0.107658,46456.0,46447.0,0.70967805]
[1641228365895,0.03998159,46454.0,46447.0,0.70967805]
[1641228366095,0.43220183,46453.0,46446.0,0.70967805]
[1641228366492,0.493051,46453.0,46446.0,0.70967805]
[1641228366692,0.22030729,46450.0,46446.0,0.70967805]
[1641228367093,0.27414429,46450.0,46445.0,0.07059362]
[1641228367295,0.00120546,46445.0,46442.0,0.70967805]
[1641228367893,0.00120546,46445.0,46438.0,0.71821105]
[1641228368355,0.053843,46442.0,46438.0,0.06237644]
[1641228368757,0.20125049,46440.0,46433.0,0.10768791]
[1641228368957,0.20125049,46440.0,46428.0,0.00793263]
[1641228368958,0.05356917,46433.0,46428.0,0.00793263]
[1641228369156,0.04448893,46432.0,46428.0,0.00793263]
[1641228369354,0.26093724,46431.0,46428.0,0.00793263]
[1641228369561,0.393051,46430.0,46428.0,0.00793263]
[1641228369856,0.393051,46430.0,46428.0,0.01646563]
[1641228369857,0.39426563,46430.0,46428.0,0.01646563]
[1641228370055,0.54812863,46430.0,46428.0,0.01646563]
[1641228370255,0.54812863,46430.0,46428.0,0.008643]
[1641228372502,0.44812863,46430.0,46428.0,0.008643]
[1641228372700,0.39426563,46430.0,46429.0,0.00013341]
[1641228374003,0.05,46430.0,46429.0,0.00013341]
[1641228376154,0.053862,46431.0,46429.0,0.05398094]
[1641228376553,0.053862,46431.0,46430.0,0.15]
[1641228376754,0.053862,46431.0,46429.0,0.05398094]
[1641228377556,0.053862,46431.0,46430.0,0.063326]
[1641228378456,0.157693,46432.0,46430.0,0.063326]
[1641228379707,0.157693,46432.0,46429.0,0.05398094]
[1641228383365,0.35105989,46431.0,46429.0,0.00013341]
[1641228384365,0.157693,46432.0,46429.0,0.00013341]
[1641228384567,0.157693,46432.0,46429.0,0.05398616]
[1641228385666,0.107693,46432.0,46429.0,0.05398616]
[1641228386067,0.053846,46432.0,46429.0,0.05398616]
[1641228390954,0.349851,46431.0,46429.0,0.05398616]
[1641228391761,0.449851,46431.0,46429.0,0.00013341]
[1641228392357,0.1,46431.0,46429.0,0.00013341]
[1641228392556,0.1,46431.0,46429.0,0.08162493]
[1641228392958,0.053846,46432.0,46429.0,0.08162493]
[1641228393456,0.349851,46431.0,46429.0,0.00013341]
[1641228393656,0.349851,46431.0,46429.0,0.05398613]
[1641228393858,0.053846,46432.0,46429.0,0.05398613]
[1641228394058,0.053846,46432.0,46429.0,0.05411869]
[1641228395009,0.053846,46432.0,46429.0,0.33587544]
[1641228395807,0.053846,46432.0,46429.0,0.05411869]
[1641228408977,0.053846,46432.0,46431.0,0.25660304]
[1641228409374,0.053846,46433.0,46429.0,0.05411869]
[1641228409594,0.053848,46432.0,46430.0,0.0538471]
[1641228409793,0.053848,46432.0,46430.0,0.1076941]
[1641228410293,0.053848,46432.0,46430.0,0.0538471]
[1641228411095,0.053848,46432.0,46430.0,0.0623801]
[1641228411692,0.053848,46432.0,46431.0,0.063324]
[1641228412294,0.003848,46432.0,46431.0,0.063324]
[1641228413749,0.003848,46432.0,46430.0,0.0623801]
[1641228415146,0.003848,46432.0,46431.0,0.00013172]
[1641228415450,0.053846,46433.0,46431.0,0.00013172]
[1641228416651,0.053846,46433.0,46432.0,0.19579558]
[1641228416852,0.053839,46435.0,46432.0,0.25911558]
[1641228417128,0.00782283,46436.0,46434.0,0.05383722]
[1641228417326,0.00782283,46436.0,46435.0,0.063311]
[1641228417930,0.00782283,46436.0,46435.0,0.29768276]
[1641228418127,0.00782283,46436.0,46435.0,0.38860354]
[1641228418328,0.053837,46437.0,46435.0,0.38860354]
[1641228418529,0.00782276,46440.0,46439.0,0.71791362]
[1641228418735,0.00782276,46440.0,46439.0,0.22791362]
[1641228419529,0.06165776,46440.0,46437.0,0.053837]
[1641228419731,0.00782276,46440.0,46437.0,0.16150682]
[1641228420330,0.157674,46442.0,46437.0,0.16150682]
[1641228420331,0.157674,46442.0,46439.0,0.05383821]
[1641228420531,0.53135755,46441.0,46439.0,0.05383821]
[1641228420763,0.48135755,46441.0,46435.0,0.71491854]
[1641228420958,0.053847,46439.0,46435.0,0.71491854]
[1641228421154,0.28150655,46441.0,46435.0,0.71491854]
[1641228421357,0.28150655,46441.0,46434.0,0.008533]
[1641228421756,0.403709,46440.0,46434.0,0.008533]
[1641228421954,0.107696,46439.0,46434.0,0.008533]
[1641228422758,0.107696,46439.0,46435.0,0.0538464]
[1641228423363,0.107696,46439.0,46434.0,0.008533]
[1641228423364,0.35107692,46436.0,46434.0,0.008533]
[1641228423660,0.74554234,46435.0,46434.0,0.008533]
[1641228424061,0.2297137,46432.0,46431.0,0.00013172]
[1641228424259,1.2227757,46432.0,46431.0,0.00013172]
[1641228424494,1.2727757,46432.0,46431.0,0.00013172]
[1641228424696,0.7727757,46432.0,46431.0,0.00013172]
[1641228425297,0.54430934,46432.0,46431.0,0.00013172]
[1641228425698,0.59816834,46432.0,46431.0,0.00013172]
[1641228426706,0.2276683,46420.0,46419.0,0.76888654]
[1641228426906,0.2276683,46420.0,46418.0,0.00011]
[1641228426907,0.05757245,46417.0,46412.0,0.00022]
[1641228427103,0.05757245,46417.0,46411.0,0.12149048]
[1641228427104,0.349862,46413.0,46411.0,0.12149048]
[1641228427304,1.38059874,46412.0,46410.0,0.00022]
[1641228427505,0.10557515,46410.0,46389.0,0.00022]
[1641228427703,0.7399,46402.0,46389.0,0.00022]
[1641228427904,0.15,46399.0,46397.0,1.07459579]
[1641228428103,0.01959,46400.0,46399.0,0.00022333]
[1641228428358,0.369452,46400.0,46389.0,0.00022]
[1641228428555,0.349862,46396.0,46395.0,0.00022]
[1641228428759,0.593062,46396.0,46395.0,0.00022]
[1641228428957,0.693062,46396.0,46395.0,0.00022]
[1641228429260,0.403771,46394.0,46389.0,0.00022]
[1641228429459,0.54433906,46393.0,46389.0,0.00022]
[1641228429655,0.64433906,46393.0,46389.0,0.00022]
[1641228429856,0.49433906,46393.0,46389.0,0.00022]
[1641228430457,0.92433906,46393.0,46391.0,0.00133]
[1641228430655,0.35111358,46392.0,46391.0,0.00133]
[1641228430855,0.39431358,46392.0,46391.0,0.00133]
[1641228431061,0.39431358,46392.0,46386.0,0.00793346]
[1641228431062,0.00125801,46388.0,46386.0,0.00793346]
[1641228431260,0.78498424,46388.0,46386.0,0.00793346]
[1641228431557,0.88498424,46388.0,46386.0,0.00793346]
[1641228431755,0.39432001,46388.0,46386.0,0.00793346]
[1641228432010,0.393062,46388.0,46386.0,0.00793346]
[1641228432204,0.393062,46388.0,46386.0,0.00011]
[1641228432405,0.343062,46388.0,46386.0,0.00011]
[1641228433205,0.393062,46388.0,46386.0,0.00011]
[1641228433608,3.08210344,46388.0,46386.0,0.00011]
[1641228434008,3.18210344,46388.0,46386.0,0.00011]
[1641228434609,3.18210344,46388.0,46386.0,0.008643]
[1641228434808,3.18210344,46388.0,46387.0,0.008753]
[1641228435874,3.24779344,46388.0,46387.0,0.008753]
[1641228436675,3.24779344,46388.0,46387.0,0.00890946]
[1641228436878,3.18210344,46388.0,46387.0,0.00890946]
[1641228437674,3.1833588,46388.0,46387.0,0.00890946]
[1641228437879,0.88,46387.0,46386.0,0.00011]
[1641228438074,0.81715757,46387.0,46386.0,0.00011]
[1641228438285,0.81715757,46387.0,46374.0,0.00022]
[1641228438286,0.35001,46385.0,46374.0,0.00022]
[1641228438483,0.81179111,46387.0,46369.0,0.00011]
[1641228438484,0.09332863,46375.0,46369.0,0.00011]
[1641228438680,0.053937,46373.0,46369.0,0.00011]
[1641228438881,0.3499,46372.0,46369.0,0.00011]
[1641228439076,0.1,46372.0,46369.0,0.00011]
[1641228439276,0.0432,46373.0,46369.0,0.00011]
[1641228439498,0.1,46375.0,46369.0,0.00011]
[1641228439699,0.3931,46374.0,46369.0,0.00011]
[1641228440000,0.0432,46373.0,46369.0,0.00011]
[1641228440198,0.00124657,46370.0,46369.0,0.00011]
[1641228440497,0.3499,46370.0,46369.0,0.00011]
[1641228440699,0.053927,46372.0,46369.0,0.39043456]
[1641228441401,0.053927,46372.0,46370.0,0.0432]
[1641228441601,0.71516258,46378.0,46371.0,0.15]
[1641228441602,0.60733758,46378.0,46371.0,0.15]
[1641228441907,0.96807228,46389.0,46376.0,0.25]
[1641228441908,0.60733758,46380.0,46376.0,0.25]
[1641228442098,0.60733758,46380.0,46377.0,0.0432]
[1641228442900,0.60733758,46380.0,46378.0,0.1775718]
[1641228443103,0.60733758,46380.0,46379.0,0.8732]
[1641228443348,0.107804,46387.0,46380.0,0.14857258]
[1641228443548,0.107804,46387.0,46381.0,0.0432]
[1641228444449,0.157804,46387.0,46382.0,0.28691983]
[1641228444647,0.157804,46387.0,46382.0,0.33011983]
[1641228445448,0.157804,46387.0,46385.0,0.2103292]
[1641228446246,0.157804,46387.0,46385.0,0.2188622]
[1641228447296,0.157804,46387.0,46385.0,0.00882086]
[1641228450100,0.3499,46386.0,46385.0,0.00882086]
[1641228450952,0.65448154,46386.0,46385.0,0.00882086]
[1641228451749,0.75448154,46386.0,46385.0,0.00882086]
[1641228452149,0.3499,46386.0,46385.0,0.00882086]
[1641228452748,0.6626997,46386.0,46385.0,0.00882086]
[1641228452954,0.3499,46386.0,46385.0,0.00882086]
[1641228453150,0.2999,46386.0,46385.0,0.00882086]
[1641228454350,0.2999,46386.0,46385.0,0.01735486]
[1641228456205,0.2999,46386.0,46385.0,0.00882186]
[1641228458006,0.2999,46386.0,46385.0,0.01735486]
[1641228459852,0.157804,46387.0,46385.0,0.01735486]
[1641228460154,0.107804,46387.0,46385.0,0.01735486]
[1641228460357,0.60733758,46388.0,46386.0,0.0432]
[1641228460552,0.60733758,46388.0,46387.0,0.87669988]
[1641228460754,0.60733758,46388.0,46387.0,1.93612195]
[1641228460958,0.24144267,46405.0,46388.0,0.05388681]
[1641228461151,0.28352102,46405.0,46397.0,0.30495957]
[1641228461352,0.39129602,46405.0,46397.0,0.07928669]
[1641228461554,0.053887,46401.0,46397.0,0.07928669]
[1641228461752,0.03419382,46404.0,46392.0,0.00126001]
[1641228462037,0.04822664,46402.0,46393.0,0.213454]
[1641228462235,0.18946064,46398.0,46390.0,0.25668608]
[1641228462438,0.03737288,46401.0,46392.0,0.30556122]
[1641228462439,0.053891,46396.0,46392.0,0.30556122]
[1641228462633,0.053891,46396.0,46393.0,0.213457]
[1641228463034,0.053891,46396.0,46392.0,0.30556122]
[1641228463238,0.003891,46396.0,46393.0,0.213456]
[1641228464034,0.003891,46396.0,46394.0,0.20225258]
[1641228464234,0.003891,46396.0,46395.0,0.213446]
[1641228464435,0.003891,46396.0,46395.0,0.30350453]
[1641228465953,0.003891,46396.0,46395.0,0.213446]
[1641228466553,0.003891,46396.0,46394.0,0.20922432]
[1641228467154,0.003691,46396.0,46394.0,0.20922432]
[1641228467355,0.60336546,46395.0,46394.0,0.20922432]
[1641228467555,0.60106165,46395.0,46394.0,0.20922432]
[1641228468356,0.60106165,46395.0,46392.0,0.35944922]
[1641228468660,0.60106165,46395.0,46394.0,0.00011833]
[1641228468858,0.60106165,46395.0,46394.0,0.00023666]
[1641228469055,0.003691,46396.0,46394.0,0.00023666]
[1641228469260,0.003691,46396.0,46394.0,0.00147333]
[1641228469896,0.003691,46396.0,46395.0,0.213445]
[1641228470098,0.05388,46398.0,46395.0,0.57626711]
[1641228470296,0.00388,46398.0,46397.0,0.08655403]
[1641228470497,0.00388,46398.0,46397.0,0.29998703]
[1641228470895,0.00378,46398.0,46397.0,0.29998703]
[1641228472294,0.086545,46400.0,46397.0,0.29998703]
[1641228472895,0.086545,46400.0,46398.0,0.053882]
[1641228473097,0.086545,46400.0,46399.0,0.213422]
[1641228477819,0.036545,46400.0,46398.0,0.053882]
[1641228478322,0.036545,46400.0,46398.0,0.13979576]
[1641228478519,0.036545,46400.0,46399.0,0.213422]
[1641228478928,0.63940484,46400.0,46399.0,0.213422]
[1641228479126,0.63940484,46400.0,46398.0,0.13979576]
[1641228479723,0.63940484,46400.0,46399.0,0.00011453]
[1641228480226,0.036545,46400.0,46399.0,0.00011453]
[1641228482145,1.196446,46400.0,46399.0,0.00011453]
[1641228482345,1.24773321,46400.0,46399.0,0.00011453]
[1641228482546,1.29773321,46400.0,46399.0,0.00011453]
[1641228482744,0.48773321,46400.0,46399.0,0.00011453]
[1641228482945,2.31839605,46400.0,46399.0,0.00011453]
[1641228483145,2.52360575,46400.0,46399.0,0.00011453]
[1641228483349,2.52360575,46400.0,46386.0,0.2774313]
[1641228483350,0.053905,46393.0,46386.0,0.2774313]
[1641228483549,0.05,46393.0,46386.0,0.2774313]
[1641228483945,0.05,46393.0,46392.0,0.26815954]
[1641228484155,0.157809,46395.0,46392.0,0.26815954]
[1641228484619,0.107809,46395.0,46392.0,0.7326381]
[1641228484813,0.85052662,46401.0,46396.0,0.2146905]
[1641228485014,0.80052662,46401.0,46400.0,0.21463334]
[1641228485213,0.24652662,46401.0,46400.0,0.25783334]
[1641228485414,0.053872,46402.0,46401.0,1.02]
[1641228485614,0.053872,46402.0,46401.0,1.55061]
[1641228485912,0.053872,46402.0,46401.0,1.62122]
[1641228486113,0.84397228,46406.0,46401.0,1.62122]
[1641228486314,0.107743,46407.0,46405.0,1.703388]
[1641228486517,0.0924,46413.0,46407.0,1.144]
[1641228486717,0.0924,46413.0,46412.0,1.26382108]